Workbook

Sheet Disclaimer (hidden)
B2: Legal disclaimer
B3: Please fully read this disclaimer before using this model
E34: www.lentransolutions.com | T34: Level 8, Suite 3, 234 George Street, NSW 2000
E35: contact@lentransolutions.com | T35: ABN: 66 615 474 523

Sheet Title
C12: =Model_Name -> CoGS & Inventory
C13: LMS Tutorial
C14: Sydney, November 2016
E34: www.lentransolutions.com | T34: Level 8, Suite 3, 234 George Street, NSW 2000
E35: contact@lentransolutions.com | T35: ABN: 66 615 474 523

Sheet Inputs
C1: Assumptions
C2: ="Tutorial: "&Model_Name -> Tutorial: CoGS & Inventory
C6: Tutorial inputs
C7: Basic version
C8: Stock cycle
C9: Work in progress (WiP) | D9: Month(s) | E9: 1
C10: Stock in transit (SiT) | D10: Month(s) | E10: 1
C11: =C8 -> Stock cycle | D11: Month(s) | E11: =SUM( E9:E10 ) -> 2
C13: Stock payment
C14: Payment due on order | D14: % | E14: 0.3
C15: Payment due on shipping | D15: % | E15: =1 - E14 -> 0.7
C17: Revenue & CoGS forecast | E17: 1 | F17: =E17+1 -> 2 | G17: =F17+1 -> 3 | H17: 4 | I17: 5 | J17: 6 | K17: 7 | L17: 8 | M17: 9 | N17: 10 | O17: =N17+1 -> 11 | P17: 12
C18: Gross Revenue | D18: AUD '000 | E18: 100 | F18: 100 | G18: 100 | H18: 150 | I18: 200 | J18: 250 | K18: 200 | L18: 150 | M18: 100 | N18: 100 | O18: 80 | P18: 70
C19: Cost of Goods Sold | D19: % of revenue | E19: 0.3 | F19: 0.3 | G19: 0.3 | H19: 0.3 | I19: 0.3 | J19: 0.3 | K19: 0.3 | L19: 0.3 | M19: 0.3 | N19: 0.3 | O19: 0.3 | P19: 0.3
C21: Opening balance sheet
C22: Assets
C23: Cash | D23: AUD '000 | E23: 0
C24: Prepayments | D24: AUD '000 | E24: 50
C25: Work in progress (WiP) | D25: AUD '000 | E25: 100
C26: Stock in transit (SiT) | D26: AUD '000 | E26: 100
C27: Inventory | D27: AUD '000 | E27: 100
C28: Total | D28: AUD '000 | E28: =SUM(E23:E27) -> 350
C30: Liabilities
C31: Accounts payable | D31: AUD '000 | E31: -100
C32: Total | D32: AUD '000 | E32: =SUM(E31) -> -100
C34: Net assets | D34: AUD '000 | E34: =E28+E32 -> 250
C36: Shareholders' equity
C37: Retained earnings | D37: AUD '000 | E37: 250
C38: Total | D38: AUD '000 | E38: =E37 -> 250
C40: Balance sheet check | D40: Check | E40: =E34-E38 -> 0
C42: Advanced version
C43: Stock cycle
C44: Work in progress (WiP) | D44: Month(s) | E44: 3
C45: Stock in transit (SiT) | D45: Month(s) | E45: 2
C46: =C43 -> Stock cycle | D46: Month(s) | E46: =SUM( E44:E45 ) -> 5
C48: Historical balances | E48: 2 | F48: 1 | G48: 0 | H48: =E17 -> 1 | I48: =F17 -> 2 | J48: =G17 -> 3
C49: =C24 -> Prepayments | D49: AUD '000 | E49: =(G18*E19)*$E$14 -> 9 | F49: =(H18*F19)*$E$14 -> 13.5 | G49: 18
C50: =C25 -> Work in progress (WiP) | D50: AUD '000 | E50: =(E18*E19)*$E$15 -> 21 | F50: =(F18*F19)*$E$15 -> 21 | G50: 21
C51: =C26 -> Stock in transit (SiT) | D51: AUD '000 | F51: =(E18*E19) -> 30 | G51: =(F18*F19) -> 30
C53: Accounts payable
C54: Creditor months | D54: Month(s) | E54: 1
C56: Opening balance sheet
C57: Assets
C58: Cash | D58: AUD '000 | E58: 113
C59: Prepayments | D59: AUD '000 | E59: =SUM(E49:G49) -> 40.5
C60: Work in progress (WiP) | D60: AUD '000 | E60: =SUM(E50:G50) -> 63
C61: Stock in transit (SiT) | D61: AUD '000 | E61: =SUM(E51:G51) -> 60
C62: Inventory | D62: AUD '000 | E62: 100
C63: Total | D63: AUD '000 | E63: =SUM(E58:E62) -> 376.5
C65: Liabilities
C66: Accounts payable | D66: AUD '000 | E66: -100
C67: Total | D67: AUD '000 | E67: =E66 -> -100
C69: Net assets | D69: AUD '000 | E69: =E63+E67 -> 276.5
C71: Shareholders' equity
C72: Retained earnings | D72: AUD '000 | E72: 276.5
C73: Total | D73: AUD '000 | E73: =E72 -> 276.5
C75: Balance sheet check | D75: Check | E75: =E69-E73 -> 0
C77: Technical inputs
C78: General
C79: Tutorial name | D79: Name | E79: CoGS & Inventory

Sheet Calcs_Basic
C1: Calculations: Basic version
C2: ="Tutorial: "&Model_Name -> Tutorial: CoGS & Inventory
C3: Forecast months | D3: Num | H3: =G3+1 -> 1 | I3: =H3+1 -> 2 | J3: 3 | K3: 4 | L3: 5 | M3: 6 | N3: 7 | O3: =N3+1 -> 8 | P3: =O3+1 -> 9 | Q3: =P3+1 -> 10 | R3: =Q3+1 -> 11 | S3: =R3+1 -> 12
C5: Key calculations
C6: Stock ordering
C7: Cost of goods sold (CoGS)
C8: =Inputs!C18 -> Gross Revenue | D8: =Inputs!D18 -> AUD '000 | G8: =SUM(H8:S8) -> 1600 | H8: =LOOKUP(H$3,Inputs!$E$17:$P$17,Inputs!$E18:$P18) -> 100 | I8: =LOOKUP(I$3,Inputs!$E$17:$P$17,Inputs!$E18:$P18) -> 100 | J8: =LOOKUP(J$3,Inputs!$E$17:$P$17,Inputs!$E18:$P18) -> 100 | K8: =LOOKUP(K$3,Inputs!$E$17:$P$17,Inputs!$E18:$P18) -> 150 | L8: =LOOKUP(L$3,Inputs!$E$17:$P$17,Inputs!$E18:$P18) -> 200 | M8: =LOOKUP(M$3,Inputs!$E$17:$P$17,Inputs!$E18:$P18) -> 250 | N8: =LOOKUP(N$3,Inputs!$E$17:$P$17,Inputs!$E18:$P18) -> 200 | O8: =LOOKUP(O$3,Inputs!$E$17:$P$17,Inputs!$E18:$P18) -> 150 | P8: =LOOKUP(P$3,Inputs!$E$17:$P$17,Inputs!$E18:$P18) -> 100 | Q8: =LOOKUP(Q$3,Inputs!$E$17:$P$17,Inputs!$E18:$P18) -> 100 | R8: =LOOKUP(R$3,Inputs!$E$17:$P$17,Inputs!$E18:$P18) -> 80 | S8: =LOOKUP(S$3,Inputs!$E$17:$P$17,Inputs!$E18:$P18) -> 70
C9: CoGS | D9: % of revenue | H9: =LOOKUP(H$3,Inputs!$E$17:$P$17,Inputs!$E19:$P19) -> 0.3 | I9: =LOOKUP(I$3,Inputs!$E$17:$P$17,Inputs!$E19:$P19) -> 0.3 | J9: =LOOKUP(J$3,Inputs!$E$17:$P$17,Inputs!$E19:$P19) -> 0.3 | K9: =LOOKUP(K$3,Inputs!$E$17:$P$17,Inputs!$E19:$P19) -> 0.3 | L9: =LOOKUP(L$3,Inputs!$E$17:$P$17,Inputs!$E19:$P19) -> 0.3 | M9: =LOOKUP(M$3,Inputs!$E$17:$P$17,Inputs!$E19:$P19) -> 0.3 | N9: =LOOKUP(N$3,Inputs!$E$17:$P$17,Inputs!$E19:$P19) -> 0.3 | O9: =LOOKUP(O$3,Inputs!$E$17:$P$17,Inputs!$E19:$P19) -> 0.3 | P9: =LOOKUP(P$3,Inputs!$E$17:$P$17,Inputs!$E19:$P19) -> 0.3 | Q9: =LOOKUP(Q$3,Inputs!$E$17:$P$17,Inputs!$E19:$P19) -> 0.3 | R9: =LOOKUP(R$3,Inputs!$E$17:$P$17,Inputs!$E19:$P19) -> 0.3 | S9: =LOOKUP(S$3,Inputs!$E$17:$P$17,Inputs!$E19:$P19) -> 0.3
C10: CoGS | D10: AUD '000 | G10: =SUM(H10:S10) -> 480 | H10: =H8*H9 -> 30 | I10: =I8*I9 -> 30 | J10: 30 | K10: 45 | L10: 60 | M10: 75 | N10: 60 | O10: 45 | P10: 30 | Q10: 30 | R10: 24 | S10: 21
C12: Order
C13: =C10 -> CoGS | D13: =D10 -> AUD '000 | G13: =SUM(H13:S13) -> 480 | H13: =H10 -> 30 | I13: =I10 -> 30 | J13: 30 | K13: 45 | L13: 60 | M13: 75 | N13: 60 | O13: 45 | P13: 30 | Q13: 30 | R13: 24 | S13: 21
C14: Stock order | D14: AUD '000 | E14: =Inputs!E11 -> 2 | G14: =SUM(H14:S14) -> 420 | H14: =OFFSET(H13,,$E14) -> 30 | I14: =OFFSET(I13,,$E14) -> 45 | J14: 60 | K14: 75 | L14: 60 | M14: 45 | N14: 30 | O14: 30 | P14: 24 | Q14: 21 | R14: 0 | S14: 0
C16: Payment
C17: Payment due on order | D17: AUD '000 | E17: =Inputs!E14 -> 0.3 | G17: =SUM(H17:S17) -> 126 | H17: =H$14*$E17 -> 9 | I17: =I$14*$E17 -> 13.5 | J17: 18 | K17: 22.5 | L17: 18 | M17: 13.5 | N17: 9 | O17: 9 | P17: 7.2 | Q17: 6.3 | R17: 0 | S17: 0
C18: =Inputs!C15 -> Payment due on shipping | D18: AUD '000 | E18: =Inputs!E15 -> 0.7 | G18: =SUM(H18:S18) -> 294 | H18: =H$14*$E18 -> 21 | I18: 31.5 | J18: 42 | K18: 52.5 | L18: 42 | M18: 31.5 | N18: 21 | O18: 21 | P18: 16.8 | Q18: 14.7 | R18: 0 | S18: 0
C19: Total | D19: AUD '000 | G19: =SUM(H19:S19) -> 420 | H19: =SUM(H17:H18) -> 30 | I19: =SUM(I17:I18) -> 45 | J19: 60 | K19: 75 | L19: 60 | M19: 45 | N19: 30 | O19: 30 | P19: 24 | Q19: 21 | R19: 0 | S19: 0
C21: Accounts
C22: =Inputs!C24 -> Prepayments
C23: Balance b/f | D23: AUD '000 | H23: =G26 -> 50 | I23: =H26 -> 59 | J23: 63.5 | K23: 68 | L23: 72.5 | M23: 68 | N23: 63.5 | O23: 59 | P23: 59 | Q23: 57.2 | R23: 56.3 | S23: 50
C24: =C17 -> Payment due on order | D24: =D17 -> AUD '000 | G24: =SUM(H24:S24) -> 126 | H24: =H17 -> 9 | I24: =I17 -> 13.5 | J24: 18 | K24: 22.5 | L24: 18 | M24: 13.5 | N24: 9 | O24: 9 | P24: 7.2 | Q24: 6.3 | R24: 0 | S24: 0
C25: Transfer to SiT from prepayments | D25: AUD '000 | E25: =Inputs!E9 -> 1 | G25: =SUM(H25:S25) -> -126 | H25: =-IF(H$3<=$E25,0,OFFSET(H24,,-$E25)) -> 0 | I25: =-IF(I$3<=$E25,0,OFFSET(I24,,-$E25)) -> -9 | J25: -13.5 | K25: -18 | L25: -22.5 | M25: -18 | N25: -13.5 | O25: -9 | P25: -9 | Q25: -7.2 | R25: -6.3 | S25: 0
C26: Balance c/f | D26: =D23 -> AUD '000 | G26: =Inputs!E24 -> 50 | H26: =SUM(H23:H25) -> 59 | I26: =SUM(I23:I25) -> 63.5 | J26: 68 | K26: 72.5 | L26: 68 | M26: 63.5 | N26: 59 | O26: 59 | P26: 57.2 | Q26: 56.3 | R26: 50 | S26: 50
C28: =Inputs!C25 -> Work in progress (WiP)
C29: Balance b/f | D29: AUD '000 | H29: =G32 -> 100 | I29: =H32 -> 121 | J29: 131.5 | K29: 142 | L29: 152.5 | M29: 142 | N29: 131.5 | O29: 121 | P29: 121 | Q29: 116.8 | R29: 114.7 | S29: 100
C30: Order in production less prepayment | D30: AUD '000 | G30: =SUM(H30:S30) -> 294 | H30: =H14-H17 -> 21 | I30: =I14-I17 -> 31.5 | J30: 42 | K30: 52.5 | L30: 42 | M30: 31.5 | N30: 21 | O30: 21 | P30: 16.8 | Q30: 14.7 | R30: 0 | S30: 0
C31: Transfer to SiT from WiP | D31: AUD '000 | E31: =Inputs!E9 -> 1 | G31: =SUM(H31:S31) -> -294 | H31: =-IF(H$3<=$E31,0,OFFSET(H30,,-$E31)) -> 0 | I31: =-IF(I$3<=$E31,0,OFFSET(I30,,-$E31)) -> -21 | J31: -31.5 | K31: -42 | L31: -52.5 | M31: -42 | N31: -31.5 | O31: -21 | P31: -21 | Q31: -16.8 | R31: -14.7 | S31: 0
C32: Balance c/f | D32: =D29 -> AUD '000 | G32: =Inputs!E25 -> 100 | H32: =SUM(H29:H31) -> 121 | I32: =SUM(I29:I31) -> 131.5 | J32: 142 | K32: 152.5 | L32: 142 | M32: 131.5 | N32: 121 | O32: 121 | P32: 116.8 | Q32: 114.7 | R32: 100 | S32: 100
C34: =Inputs!C26 -> Stock in transit (SiT)
C35: Balance b/f | D35: AUD '000 | H35: =G39 -> 100 | I35: =H39 -> 100 | J35: 130 | K35: 145 | L35: 160 | M35: 175 | N35: 160 | O35: 145 | P35: 130 | Q35: 130 | R35: 124 | S35: 121
C36: =C25 -> Transfer to SiT from prepayments | D36: =D25 -> AUD '000 | G36: =SUM(H36:S36) -> 126 | H36: =-H25 -> 0 | I36: =-I25 -> 9 | J36: 13.5 | K36: 18 | L36: 22.5 | M36: 18 | N36: 13.5 | O36: 9 | P36: 9 | Q36: 7.2 | R36: 6.3 | S36: 0
C37: =C31 -> Transfer to SiT from WiP | D37: =D31 -> AUD '000 | G37: =SUM(H37:S37) -> 294 | H37: =-H31 -> 0 | I37: =-I31 -> 21 | J37: 31.5 | K37: 42 | L37: 52.5 | M37: 42 | N37: 31.5 | O37: 21 | P37: 21 | Q37: 16.8 | R37: 14.7 | S37: 0
C38: Transfer from SiT to inventory | D38: AUD '000 | E38: =Inputs!E10 -> 1 | G38: =SUM(H38:S38) -> -420 | H38: =-IF(H$3<=$E38,0,SUM(OFFSET(H36,,-$E38,2,1))) -> 0 | I38: =-IF(I$3<=$E38,0,SUM(OFFSET(I36,,-$E38,2,1))) -> 0 | J38: =-IF(J$3<=$E38,0,SUM(OFFSET(J36,,-$E38,2,1))) -> -30 | K38: -45 | L38: -60 | M38: -75 | N38: -60 | O38: -45 | P38: -30 | Q38: -30 | R38: -24 | S38: -21
C39: Balance c/f | D39: =D35 -> AUD '000 | G39: =Inputs!E26 -> 100 | H39: =SUM(H35:H38) -> 100 | I39: =SUM(I35:I38) -> 130 | J39: 145 | K39: 160 | L39: 175 | M39: 160 | N39: 145 | O39: 130 | P39: 130 | Q39: 124 | R39: 121 | S39: 100
C41: =Inputs!C27 -> Inventory
C42: Balance b/f | D42: AUD '000 | H42: =G45 -> 100 | I42: =H45 -> 70 | J42: 40 | K42: 40 | L42: 40 | M42: 40 | N42: 40 | O42: 40 | P42: 40 | Q42: 40 | R42: 40 | S42: 40
C43: Transfer to inventory from SiT | D43: =D38 -> AUD '000 | G43: =SUM(H43:S43) -> 420 | H43: =-H38 -> 0 | I43: =-I38 -> 0 | J43: 30 | K43: 45 | L43: 60 | M43: 75 | N43: 60 | O43: 45 | P43: 30 | Q43: 30 | R43: 24 | S43: 21
C44: =C59 -> CoGS | D44: =D59 -> AUD '000 | G44: =SUM(H44:S44) -> -480 | H44: =-H10 -> -30 | I44: =-I10 -> -30 | J44: -30 | K44: -45 | L44: -60 | M44: -75 | N44: -60 | O44: -45 | P44: -30 | Q44: -30 | R44: -24 | S44: -21
C45: Balance c/f | D45: =D42 -> AUD '000 | G45: =Inputs!E27 -> 100 | H45: =SUM(H42:H44) -> 70 | I45: =SUM(I42:I44) -> 40 | J45: 40 | K45: 40 | L45: 40 | M45: 40 | N45: 40 | O45: 40 | P45: 40 | Q45: 40 | R45: 40 | S45: 40
C47: =Inputs!C31 -> Accounts payable
C48: Balance b/f | D48: AUD '000 | H48: =G51 -> 100 | I48: =H51 -> 121 | J48: 131.5 | K48: 142 | L48: 152.5 | M48: 142 | N48: 131.5 | O48: 121 | P48: 121 | Q48: 116.8 | R48: 114.7 | S48: 100
C49: =C18 -> Payment due on shipping | D49: =D18 -> AUD '000 | G49: =SUM(H49:S49) -> 294 | H49: =H18 -> 21 | I49: =I18 -> 31.5 | J49: 42 | K49: 52.5 | L49: 42 | M49: 31.5 | N49: 21 | O49: 21 | P49: 16.8 | Q49: 14.7 | R49: 0 | S49: 0
C50: Payment of accounts payable | D50: AUD '000 | E50: =Inputs!E10 -> 1 | G50: =SUM(H50:S50) -> -294 | H50: =-IF(H$3<=$E50,0,OFFSET(H49,,-$E50)) -> 0 | I50: =-IF(I$3<=$E50,0,OFFSET(I49,,-$E50)) -> -21 | J50: -31.5 | K50: -42 | L50: -52.5 | M50: -42 | N50: -31.5 | O50: -21 | P50: -21 | Q50: -16.8 | R50: -14.7 | S50: 0
C51: Balance c/f | D51: =D48 -> AUD '000 | G51: =-Inputs!E31 -> 100 | H51: =SUM(H48:H50) -> 121 | I51: =SUM(I48:I50) -> 131.5 | J51: 142 | K51: 152.5 | L51: 142 | M51: 131.5 | N51: 121 | O51: 121 | P51: 116.8 | Q51: 114.7 | R51: 100 | S51: 100
C53: =Inputs!C37 -> Retained earnings
C54: Balance b/f | D54: AUD '000 | H54: =G56 -> 250 | I54: =H56 -> 320 | J54: 390 | K54: 460 | L54: 565 | M54: 705 | N54: 880 | O54: 1020 | P54: 1125 | Q54: 1195 | R54: 1265 | S54: 1321
C55: =C60 -> Profit / (Loss) | D55: =D60 -> AUD '000 | G55: =SUM(H55:S55) -> 1120 | H55: =H60 -> 70 | I55: =I60 -> 70 | J55: 70 | K55: 105 | L55: 140 | M55: 175 | N55: 140 | O55: 105 | P55: 70 | Q55: 70 | R55: 56 | S55: 49
C56: Balance c/f | D56: AUD '000 | G56: =Inputs!E37 -> 250 | H56: =SUM(H54:H55) -> 320 | I56: =SUM(I54:I55) -> 390 | J56: 460 | K56: 565 | L56: 705 | M56: 880 | N56: 1020 | O56: 1125 | P56: 1195 | Q56: 1265 | R56: 1321 | S56: 1370
C58: =C8 -> Gross Revenue | D58: =D8 -> AUD '000 | G58: =SUM(H58:S58) -> 1600 | H58: =H8 -> 100 | I58: =I8 -> 100 | J58: 100 | K58: 150 | L58: 200 | M58: 250 | N58: 200 | O58: 150 | P58: 100 | Q58: 100 | R58: 80 | S58: 70
C59: =C10 -> CoGS | D59: =D10 -> AUD '000 | G59: =SUM(H59:S59) -> -480 | H59: =-H10 -> -30 | I59: =-I10 -> -30 | J59: -30 | K59: -45 | L59: -60 | M59: -75 | N59: -60 | O59: -45 | P59: -30 | Q59: -30 | R59: -24 | S59: -21
C60: Profit / (Loss) | D60: AUD '000 | G60: =SUM(H60:S60) -> 1120 | H60: =SUM(H58:H59) -> 70 | I60: =SUM(I58:I59) -> 70 | J60: 70 | K60: 105 | L60: 140 | M60: 175 | N60: 140 | O60: 105 | P60: 70 | Q60: 70 | R60: 56 | S60: 49
C62: Cash
C63: Balance b/f | D63: AUD '000 | H63: =G67 -> 0 | I63: =H67 -> 91 | J63: 156.5 | K63: 207 | L63: 292.5 | M63: 422 | N63: 616.5 | O63: 776 | P63: 896 | Q63: 967.8 | R63: 1044.7 | S63: 1110
C64: Cash sales | D64: AUD '000 | G64: =SUM(H64:S64) -> 1600 | H64: =H58 -> 100 | I64: =I58 -> 100 | J64: 100 | K64: 150 | L64: 200 | M64: 250 | N64: 200 | O64: 150 | P64: 100 | Q64: 100 | R64: 80 | S64: 70
C65: =C24 -> Payment due on order | D65: =D24 -> AUD '000 | G65: -126 | H65: =-H24 -> -9 | I65: =-I24 -> -13.5 | J65: -18 | K65: -22.5 | L65: -18 | M65: -13.5 | N65: -9 | O65: -9 | P65: -7.2 | Q65: -6.3 | R65: 0 | S65: 0
C66: =C50 -> Payment of accounts payable | D66: =D50 -> AUD '000 | G66: -294 | H66: =H50 -> 0 | I66: =I50 -> -21 | J66: -31.5 | K66: -42 | L66: -52.5 | M66: -42 | N66: -31.5 | O66: -21 | P66: -21 | Q66: -16.8 | R66: -14.7 | S66: 0
C67: Balance c/f | D67: AUD '000 | G67: =Inputs!E23 -> 0 | H67: =SUM(H63:H66) -> 91 | I67: =SUM(I63:I66) -> 156.5 | J67: 207 | K67: 292.5 | L67: 422 | M67: 616.5 | N67: 776 | O67: 896 | P67: 967.8 | Q67: 1044.7 | R67: 1110 | S67: 1180
C69: Outputs / Cross-check
C70: Balance Sheet
C71: =Inputs!C22 -> Assets
C72: =Inputs!C23 -> Cash | D72: =D67 -> AUD '000 | H72: =H67 -> 91 | I72: =I67 -> 156.5 | J72: 207 | K72: 292.5 | L72: 422 | M72: 616.5 | N72: 776 | O72: 896 | P72: 967.8 | Q72: 1044.7 | R72: 1110 | S72: 1180
C73: =Inputs!C24 -> Prepayments | D73: =D26 -> AUD '000 | H73: =H26 -> 59 | I73: =I26 -> 63.5 | J73: 68 | K73: 72.5 | L73: 68 | M73: 63.5 | N73: 59 | O73: 59 | P73: 57.2 | Q73: 56.3 | R73: 50 | S73: 50
C74: =Inputs!C25 -> Work in progress (WiP) | D74: =D32 -> AUD '000 | H74: =H32 -> 121 | I74: =I32 -> 131.5 | J74: 142 | K74: 152.5 | L74: 142 | M74: 131.5 | N74: 121 | O74: 121 | P74: 116.8 | Q74: 114.7 | R74: 100 | S74: 100
C75: =Inputs!C26 -> Stock in transit (SiT) | D75: =D39 -> AUD '000 | H75: =H39 -> 100 | I75: =I39 -> 130 | J75: 145 | K75: 160 | L75: 175 | M75: 160 | N75: 145 | O75: 130 | P75: 130 | Q75: 124 | R75: 121 | S75: 100
C76: =Inputs!C27 -> Inventory | D76: =D45 -> AUD '000 | H76: =H45 -> 70 | I76: =I45 -> 40 | J76: 40 | K76: 40 | L76: 40 | M76: 40 | N76: 40 | O76: 40 | P76: 40 | Q76: 40 | R76: 40 | S76: 40
C77: =Inputs!C28 -> Total | D77: AUD '000 | H77: =SUM(H72:H76) -> 441 | I77: =SUM(I72:I76) -> 521.5 | J77: 602 | K77: 717.5 | L77: 847 | M77: 1011.5 | N77: 1141 | O77: 1246 | P77: 1311.8 | Q77: 1379.7 | R77: 1421 | S77: 1470
C79: =Inputs!C30 -> Liabilities
C80: =Inputs!C31 -> Accounts payable | D80: =D51 -> AUD '000 | H80: =-H51 -> -121 | I80: =-I51 -> -131.5 | J80: -142 | K80: -152.5 | L80: -142 | M80: -131.5 | N80: -121 | O80: -121 | P80: -116.8 | Q80: -114.7 | R80: -100 | S80: -100
C81: =Inputs!C32 -> Total | D81: AUD '000 | H81: =SUM(H80) -> -121 | I81: =SUM(I80) -> -131.5 | J81: -142 | K81: -152.5 | L81: -142 | M81: -131.5 | N81: -121 | O81: -121 | P81: -116.8 | Q81: -114.7 | R81: -100 | S81: -100
C83: =Inputs!C34 -> Net assets | D83: AUD '000 | H83: =H77+H81 -> 320 | I83: =I77+I81 -> 390 | J83: 460 | K83: 565 | L83: 705 | M83: 880 | N83: 1020 | O83: 1125 | P83: 1195 | Q83: 1265 | R83: 1321 | S83: 1370
C85: =Inputs!C36 -> Shareholders' equity
C86: =Inputs!C37 -> Retained earnings | D86: =D56 -> AUD '000 | H86: =H56 -> 320 | I86: =I56 -> 390 | J86: 460 | K86: 565 | L86: 705 | M86: 880 | N86: 1020 | O86: 1125 | P86: 1195 | Q86: 1265 | R86: 1321 | S86: 1370
C87: =Inputs!C38 -> Total | D87: AUD '000 | H87: =SUM(H86:H86) -> 320 | I87: =SUM(I86:I86) -> 390 | J87: 460 | K87: 565 | L87: 705 | M87: 880 | N87: 1020 | O87: 1125 | P87: 1195 | Q87: 1265 | R87: 1321 | S87: 1370
C89: =Inputs!C40 -> Balance sheet check | D89: Check | G89: =SUM(H89:S89) -> 0 | H89: =H83-H87 -> 0 | I89: 0 | J89: 0 | K89: 0 | L89: 0 | M89: 0 | N89: 0 | O89: =O83-O87 -> 0 | P89: 0 | Q89: 0 | R89: 0 | S89: 0

Sheet Calcs_Adv
C1: Calculations: Advanced version
C2: ="Tutorial: "&Model_Name -> Tutorial: CoGS & Inventory
C3: Forecast months | D3: Num | H3: =G3+1 -> 1 | I3: =H3+1 -> 2 | J3: 3 | K3: 4 | L3: 5 | M3: 6 | N3: 7 | O3: 8 | P3: 9 | Q3: 10 | R3: 11 | S3: 12
C5: Key calculations
C6: Stock ordering
C7: Cost of goods sold (CoGS)
C8: =Inputs!C18 -> Gross Revenue | D8: =Inputs!D18 -> AUD '000 | G8: =SUM(H8:S8) -> 1600 | H8: =LOOKUP(H$3,Inputs!$E$17:$P$17,Inputs!$E18:$P18) -> 100 | I8: =LOOKUP(I$3,Inputs!$E$17:$P$17,Inputs!$E18:$P18) -> 100 | J8: =LOOKUP(J$3,Inputs!$E$17:$P$17,Inputs!$E18:$P18) -> 100 | K8: =LOOKUP(K$3,Inputs!$E$17:$P$17,Inputs!$E18:$P18) -> 150 | L8: =LOOKUP(L$3,Inputs!$E$17:$P$17,Inputs!$E18:$P18) -> 200 | M8: =LOOKUP(M$3,Inputs!$E$17:$P$17,Inputs!$E18:$P18) -> 250 | N8: =LOOKUP(N$3,Inputs!$E$17:$P$17,Inputs!$E18:$P18) -> 200 | O8: =LOOKUP(O$3,Inputs!$E$17:$P$17,Inputs!$E18:$P18) -> 150 | P8: =LOOKUP(P$3,Inputs!$E$17:$P$17,Inputs!$E18:$P18) -> 100 | Q8: =LOOKUP(Q$3,Inputs!$E$17:$P$17,Inputs!$E18:$P18) -> 100 | R8: =LOOKUP(R$3,Inputs!$E$17:$P$17,Inputs!$E18:$P18) -> 80 | S8: =LOOKUP(S$3,Inputs!$E$17:$P$17,Inputs!$E18:$P18) -> 70
C9: CoGS | D9: % of revenue | H9: =LOOKUP(H$3,Inputs!$E$17:$P$17,Inputs!$E19:$P19) -> 0.3 | I9: =LOOKUP(I$3,Inputs!$E$17:$P$17,Inputs!$E19:$P19) -> 0.3 | J9: =LOOKUP(J$3,Inputs!$E$17:$P$17,Inputs!$E19:$P19) -> 0.3 | K9: =LOOKUP(K$3,Inputs!$E$17:$P$17,Inputs!$E19:$P19) -> 0.3 | L9: =LOOKUP(L$3,Inputs!$E$17:$P$17,Inputs!$E19:$P19) -> 0.3 | M9: =LOOKUP(M$3,Inputs!$E$17:$P$17,Inputs!$E19:$P19) -> 0.3 | N9: =LOOKUP(N$3,Inputs!$E$17:$P$17,Inputs!$E19:$P19) -> 0.3 | O9: =LOOKUP(O$3,Inputs!$E$17:$P$17,Inputs!$E19:$P19) -> 0.3 | P9: =LOOKUP(P$3,Inputs!$E$17:$P$17,Inputs!$E19:$P19) -> 0.3 | Q9: =LOOKUP(Q$3,Inputs!$E$17:$P$17,Inputs!$E19:$P19) -> 0.3 | R9: =LOOKUP(R$3,Inputs!$E$17:$P$17,Inputs!$E19:$P19) -> 0.3 | S9: =LOOKUP(S$3,Inputs!$E$17:$P$17,Inputs!$E19:$P19) -> 0.3
C10: CoGS | D10: AUD '000 | G10: =SUM(H10:S10) -> 480 | H10: =H8*H9 -> 30 | I10: =I8*I9 -> 30 | J10: 30 | K10: 45 | L10: 60 | M10: 75 | N10: 60 | O10: 45 | P10: 30 | Q10: 30 | R10: 24 | S10: 21
C12: Order
C13: =C10 -> CoGS | D13: =D10 -> AUD '000 | G13: =SUM(H13:S13) -> 480 | H13: =H10 -> 30 | I13: =I10 -> 30 | J13: 30 | K13: 45 | L13: 60 | M13: 75 | N13: 60 | O13: 45 | P13: 30 | Q13: 30 | R13: 24 | S13: 21
C14: Stock order | D14: AUD '000 | E14: =Inputs!E46 -> 5 | G14: =SUM(H14:S14) -> 285 | H14: =OFFSET(H13,,$E14) -> 75 | I14: =OFFSET(I13,,$E14) -> 60 | J14: 45 | K14: 30 | L14: 30 | M14: 24 | N14: 21 | O14: 0 | P14: 0 | Q14: 0 | R14: 0 | S14: 0
C16: Payment
C17: Payment due on order | D17: AUD '000 | E17: =Inputs!E14 -> 0.3 | G17: =SUM(H17:S17) -> 85.5 | H17: =H$14*$E17 -> 22.5 | I17: =I$14*$E17 -> 18 | J17: 13.5 | K17: 9 | L17: 9 | M17: 7.2 | N17: 6.3 | O17: 0 | P17: 0 | Q17: 0 | R17: 0 | S17: 0
C18: =Inputs!C15 -> Payment due on shipping | D18: AUD '000 | E18: =Inputs!E15 -> 0.7 | G18: =SUM(H18:S18) -> 199.5 | H18: =H$14*$E18 -> 52.5 | I18: 42 | J18: 31.5 | K18: 21 | L18: 21 | M18: 16.8 | N18: 14.7 | O18: 0 | P18: 0 | Q18: 0 | R18: 0 | S18: 0
C19: Total | D19: AUD '000 | G19: =SUM(H19:S19) -> 285 | H19: =SUM(H17:H18) -> 75 | I19: =SUM(I17:I18) -> 60 | J19: 45 | K19: 30 | L19: 30 | M19: 24 | N19: 21 | O19: 0 | P19: 0 | Q19: 0 | R19: 0 | S19: 0
C21: Accounts
C22: =Inputs!C24 -> Prepayments
C23: Balance b/f | D23: AUD '000 | H23: =G26 -> 40.5 | I23: =H26 -> 54 | J23: 58.5 | K23: 54 | L23: 40.5 | M23: 31.5 | N23: 25.2 | O23: 22.5 | P23: 13.5 | Q23: 6.3 | R23: 0 | S23: 0
C24: =C17 -> Payment due on order | D24: =D17 -> AUD '000 | G24: =SUM(H24:S24) -> 85.5 | H24: =H17 -> 22.5 | I24: =I17 -> 18 | J24: 13.5 | K24: 9 | L24: 9 | M24: 7.2 | N24: 6.3 | O24: 0 | P24: 0 | Q24: 0 | R24: 0 | S24: 0
C25: Transfer to SiT from prepayments | D25: AUD '000 | G25: =SUM(H25:S25) -> -126 | H25: =-H31 -> -9 | I25: =-I31 -> -13.5 | J25: -18 | K25: -22.5 | L25: -18 | M25: -13.5 | N25: -9 | O25: -9 | P25: -7.2 | Q25: -6.3 | R25: 0 | S25: 0
C26: Balance c/f | D26: =D23 -> AUD '000 | G26: =Inputs!E59 -> 40.5 | H26: =SUM(H23:H25) -> 54 | I26: =SUM(I23:I25) -> 58.5 | J26: 54 | K26: 40.5 | L26: 31.5 | M26: 25.2 | N26: 22.5 | O26: 13.5 | P26: 6.3 | Q26: 0 | R26: 0 | S26: 0
C28: =C25 -> Transfer to SiT from prepayments
C29: Historical balances c/f | D29: AUD '000 | E29: =Inputs!E44 -> 3 | G29: =SUM(H29:S29) -> 40.5 | H29: =IF(H$3>$E29,0,OFFSET(INDEX(Inputs!$H$49:$J$49,H$3),,-$E29)) -> 9 | I29: =IF(I$3>$E29,0,OFFSET(INDEX(Inputs!$H$49:$J$49,I$3),,-$E29)) -> 13.5 | J29: =IF(J$3>$E29,0,OFFSET(INDEX(Inputs!$H$49:$J$49,J$3),,-$E29)) -> 18 | K29: =IF(K$3>$E29,0,OFFSET(INDEX(Inputs!$H$49:$J$49,K$3),,-$E29)) -> 0 | L29: =IF(L$3>$E29,0,OFFSET(INDEX(Inputs!$H$49:$J$49,L$3),,-$E29)) -> 0 | M29: =IF(M$3>$E29,0,OFFSET(INDEX(Inputs!$H$49:$J$49,M$3),,-$E29)) -> 0 | N29: =IF(N$3>$E29,0,OFFSET(INDEX(Inputs!$H$49:$J$49,N$3),,-$E29)) -> 0 | O29: =IF(O$3>$E29,0,OFFSET(INDEX(Inputs!$H$49:$J$49,O$3),,-$E29)) -> 0 | P29: =IF(P$3>$E29,0,OFFSET(INDEX(Inputs!$H$49:$J$49,P$3),,-$E29)) -> 0 | Q29: =IF(Q$3>$E29,0,OFFSET(INDEX(Inputs!$H$49:$J$49,Q$3),,-$E29)) -> 0 | R29: =IF(R$3>$E29,0,OFFSET(INDEX(Inputs!$H$49:$J$49,R$3),,-$E29)) -> 0 | S29: =IF(S$3>$E29,0,OFFSET(INDEX(Inputs!$H$49:$J$49,S$3),,-$E29)) -> 0
C30: =C24 -> Payment due on order | D30: AUD '000 | G30: 85.5 | H30: =IF(H$3<=$E29,0,OFFSET(H24,,-$E29)) -> 0 | I30: =IF(I$3<=$E29,0,OFFSET(I24,,-$E29)) -> 0 | J30: 0 | K30: 22.5 | L30: 18 | M30: 13.5 | N30: 9 | O30: 9 | P30: 7.2 | Q30: 6.3 | R30: 0 | S30: 0
C31: Total | D31: AUD '000 | G31: 126 | H31: =SUM(H29:H30) -> 9 | I31: =SUM(I29:I30) -> 13.5 | J31: 18 | K31: 22.5 | L31: 18 | M31: 13.5 | N31: 9 | O31: 9 | P31: 7.2 | Q31: 6.3 | R31: 0 | S31: 0
C33: =Inputs!C25 -> Work in progress (WiP)
C34: Balance b/f | D34: AUD '000 | H34: =G37 -> 63 | I34: =H37 -> 94.5 | J34: 115.5 | K34: 126 | L34: 94.5 | M34: 73.5 | N34: 58.8 | O34: 52.5 | P34: 31.5 | Q34: 14.7 | R34: 0 | S34: 0
C35: Order in production less prepayment | D35: AUD '000 | G35: =SUM(H35:S35) -> 199.5 | H35: =H14-H17 -> 52.5 | I35: =I14-I17 -> 42 | J35: 31.5 | K35: 21 | L35: 21 | M35: 16.8 | N35: 14.7 | O35: 0 | P35: 0 | Q35: 0 | R35: 0 | S35: 0
C36: Transfer to SiT from WiP | D36: AUD '000 | G36: =SUM(H36:S36) -> -262.5 | H36: =-H42 -> -21 | I36: =-I42 -> -21 | J36: -21 | K36: -52.5 | L36: -42 | M36: -31.5 | N36: -21 | O36: -21 | P36: -16.8 | Q36: -14.7 | R36: 0 | S36: 0
C37: Balance c/f | D37: =D34 -> AUD '000 | G37: =Inputs!E60 -> 63 | H37: =SUM(H34:H36) -> 94.5 | I37: =SUM(I34:I36) -> 115.5 | J37: 126 | K37: 94.5 | L37: 73.5 | M37: 58.8 | N37: 52.5 | O37: 31.5 | P37: 14.7 | Q37: 0 | R37: 0 | S37: 0
C39: =C36 -> Transfer to SiT from WiP
C40: Historical balances c/f | D40: AUD '000 | E40: =Inputs!E44 -> 3 | G40: =SUM(H40:S40) -> 63 | H40: =IF(H$3>$E40,0,OFFSET(INDEX(Inputs!$H$50:$J$50,H$3),,-$E40)) -> 21 | I40: =IF(I$3>$E40,0,OFFSET(INDEX(Inputs!$H$50:$J$50,I$3),,-$E40)) -> 21 | J40: =IF(J$3>$E40,0,OFFSET(INDEX(Inputs!$H$50:$J$50,J$3),,-$E40)) -> 21 | K40: =IF(K$3>$E40,0,OFFSET(INDEX(Inputs!$H$50:$J$50,K$3),,-$E40)) -> 0 | L40: =IF(L$3>$E40,0,OFFSET(INDEX(Inputs!$H$50:$J$50,L$3),,-$E40)) -> 0 | M40: =IF(M$3>$E40,0,OFFSET(INDEX(Inputs!$H$50:$J$50,M$3),,-$E40)) -> 0 | N40: =IF(N$3>$E40,0,OFFSET(INDEX(Inputs!$H$50:$J$50,N$3),,-$E40)) -> 0 | O40: =IF(O$3>$E40,0,OFFSET(INDEX(Inputs!$H$50:$J$50,O$3),,-$E40)) -> 0 | P40: =IF(P$3>$E40,0,OFFSET(INDEX(Inputs!$H$50:$J$50,P$3),,-$E40)) -> 0 | Q40: =IF(Q$3>$E40,0,OFFSET(INDEX(Inputs!$H$50:$J$50,Q$3),,-$E40)) -> 0 | R40: =IF(R$3>$E40,0,OFFSET(INDEX(Inputs!$H$50:$J$50,R$3),,-$E40)) -> 0 | S40: =IF(S$3>$E40,0,OFFSET(INDEX(Inputs!$H$50:$J$50,S$3),,-$E40)) -> 0
C41: =C35 -> Order in production less prepayment | D41: AUD '000 | G41: 199.5 | H41: =IF(H$3<=$E40,0,OFFSET(H35,,-$E40)) -> 0 | I41: =IF(I$3<=$E40,0,OFFSET(I35,,-$E40)) -> 0 | J41: 0 | K41: 52.5 | L41: 42 | M41: 31.5 | N41: 21 | O41: 21 | P41: 16.8 | Q41: 14.7 | R41: 0 | S41: 0
C42: Total | D42: AUD '000 | G42: 262.5 | H42: =SUM(H40:H41) -> 21 | I42: =SUM(I40:I41) -> 21 | J42: 21 | K42: 52.5 | L42: 42 | M42: 31.5 | N42: 21 | O42: 21 | P42: 16.8 | Q42: 14.7 | R42: 0 | S42: 0
C44: =Inputs!C26 -> Stock in transit (SiT)
C45: Balance b/f | D45: AUD '000 | H45: =G49 -> 60 | I45: =H49 -> 60 | J45: 64.5 | K45: 73.5 | L45: 114 | M45: 135 | N45: 105 | O45: 75 | P45: 60 | Q45: 54 | R45: 45 | S45: 21
C46: =C25 -> Transfer to SiT from prepayments | D46: =D25 -> AUD '000 | G46: =SUM(H46:S46) -> 126 | H46: =-H25 -> 9 | I46: =-I25 -> 13.5 | J46: 18 | K46: 22.5 | L46: 18 | M46: 13.5 | N46: 9 | O46: 9 | P46: 7.2 | Q46: 6.3 | R46: 0 | S46: 0
C47: =C36 -> Transfer to SiT from WiP | D47: =D36 -> AUD '000 | G47: =SUM(H47:S47) -> 262.5 | H47: =-H36 -> 21 | I47: =-I36 -> 21 | J47: 21 | K47: 52.5 | L47: 42 | M47: 31.5 | N47: 21 | O47: 21 | P47: 16.8 | Q47: 14.7 | R47: 0 | S47: 0
C48: Transfer from SiT to inventory | D48: AUD '000 | G48: =SUM(H48:S48) -> -448.5 | H48: =-H54 -> -30 | I48: =-I54 -> -30 | J48: -30 | K48: -34.5 | L48: -39 | M48: -75 | N48: -60 | O48: -45 | P48: -30 | Q48: -30 | R48: -24 | S48: -21
C49: Balance c/f | D49: =D45 -> AUD '000 | G49: =Inputs!E61 -> 60 | H49: =SUM(H45:H48) -> 60 | I49: =SUM(I45:I48) -> 64.5 | J49: 73.5 | K49: 114 | L49: 135 | M49: 105 | N49: 75 | O49: 60 | P49: 54 | Q49: 45 | R49: 21 | S49: 0
C51: Transfer from SiT to inventory
C52: Historical balances c/f | D52: AUD '000 | E52: =Inputs!E45 -> 2 | G52: =SUM(H52:S52) -> 60 | H52: =IF(H$3>$E52,0,OFFSET(INDEX(Inputs!$H$51:$J$51,H$3),,-$E52)) -> 30 | I52: =IF(I$3>$E52,0,OFFSET(INDEX(Inputs!$H$51:$J$51,I$3),,-$E52)) -> 30 | J52: =IF(J$3>$E52,0,OFFSET(INDEX(Inputs!$H$51:$J$51,J$3),,-$E52)) -> 0 | K52: =IF(K$3>$E52,0,OFFSET(INDEX(Inputs!$H$51:$J$51,K$3),,-$E52)) -> 0 | L52: =IF(L$3>$E52,0,OFFSET(INDEX(Inputs!$H$51:$J$51,L$3),,-$E52)) -> 0 | M52: =IF(M$3>$E52,0,OFFSET(INDEX(Inputs!$H$51:$J$51,M$3),,-$E52)) -> 0 | N52: =IF(N$3>$E52,0,OFFSET(INDEX(Inputs!$H$51:$J$51,N$3),,-$E52)) -> 0 | O52: =IF(O$3>$E52,0,OFFSET(INDEX(Inputs!$H$51:$J$51,O$3),,-$E52)) -> 0 | P52: =IF(P$3>$E52,0,OFFSET(INDEX(Inputs!$H$51:$J$51,P$3),,-$E52)) -> 0 | Q52: =IF(Q$3>$E52,0,OFFSET(INDEX(Inputs!$H$51:$J$51,Q$3),,-$E52)) -> 0 | R52: =IF(R$3>$E52,0,OFFSET(INDEX(Inputs!$H$51:$J$51,R$3),,-$E52)) -> 0 | S52: =IF(S$3>$E52,0,OFFSET(INDEX(Inputs!$H$51:$J$51,S$3),,-$E52)) -> 0
C53: =C47 -> Transfer to SiT from WiP | D53: AUD '000 | G53: 388.5 | H53: =IF(H$3<=$E52,0,SUM(OFFSET(H46,,-$E52,2,1))) -> 0 | I53: =IF(I$3<=$E52,0,SUM(OFFSET(I46,,-$E52,2,1))) -> 0 | J53: 30 | K53: 34.5 | L53: 39 | M53: 75 | N53: 60 | O53: 45 | P53: 30 | Q53: 30 | R53: 24 | S53: 21
C54: Total | D54: AUD '000 | G54: 448.5 | H54: =SUM(H52:H53) -> 30 | I54: =SUM(I52:I53) -> 30 | J54: 30 | K54: 34.5 | L54: 39 | M54: 75 | N54: 60 | O54: 45 | P54: 30 | Q54: 30 | R54: 24 | S54: 21
C56: =Inputs!C27 -> Inventory
C57: Balance b/f | D57: AUD '000 | H57: =G60 -> 100 | I57: =H60 -> 100 | J57: 100 | K57: 100 | L57: 89.5 | M57: 68.5 | N57: 68.5 | O57: 68.5 | P57: 68.5 | Q57: 68.5 | R57: 68.5 | S57: 68.5
C58: Transfer to inventory from SiT | D58: =D48 -> AUD '000 | G58: =SUM(H58:S58) -> 448.5 | H58: =-H48 -> 30 | I58: =-I48 -> 30 | J58: 30 | K58: 34.5 | L58: 39 | M58: 75 | N58: 60 | O58: 45 | P58: 30 | Q58: 30 | R58: 24 | S58: 21
C59: =C74 -> CoGS | D59: =D74 -> AUD '000 | G59: =SUM(H59:S59) -> -480 | H59: =-H10 -> -30 | I59: =-I10 -> -30 | J59: -30 | K59: -45 | L59: -60 | M59: -75 | N59: -60 | O59: -45 | P59: -30 | Q59: -30 | R59: -24 | S59: -21
C60: Balance c/f | D60: =D57 -> AUD '000 | G60: =Inputs!E62 -> 100 | H60: =SUM(H57:H59) -> 100 | I60: =SUM(I57:I59) -> 100 | J60: 100 | K60: 89.5 | L60: 68.5 | M60: 68.5 | N60: 68.5 | O60: 68.5 | P60: 68.5 | Q60: 68.5 | R60: 68.5 | S60: 68.5
C62: =Inputs!C31 -> Accounts payable
C63: Balance b/f | D63: AUD '000 | H63: =G66 -> 100 | I63: =H66 -> 152.5 | J63: 142 | K63: 131.5 | L63: 121 | M63: 121 | N63: 116.8 | O63: 114.7 | P63: 100 | Q63: 100 | R63: 100 | S63: 100
C64: =C18 -> Payment due on shipping | D64: =D18 -> AUD '000 | G64: =SUM(H64:S64) -> 199.5 | H64: =H18 -> 52.5 | I64: =I18 -> 42 | J64: 31.5 | K64: 21 | L64: 21 | M64: 16.8 | N64: 14.7 | O64: 0 | P64: 0 | Q64: 0 | R64: 0 | S64: 0
C65: Payment of accounts payable | D65: AUD '000 | E65: =Inputs!E54 -> 1 | G65: =SUM(H65:S65) -> -199.5 | H65: =-IF(H$3<=$E65,0,OFFSET(H64,,-$E65)) -> 0 | I65: =-IF(I$3<=$E65,0,OFFSET(I64,,-$E65)) -> -52.5 | J65: -42 | K65: -31.5 | L65: -21 | M65: -21 | N65: -16.8 | O65: -14.7 | P65: 0 | Q65: 0 | R65: 0 | S65: 0
C66: Balance c/f | D66: =D63 -> AUD '000 | G66: =-Inputs!E66 -> 100 | H66: =SUM(H63:H65) -> 152.5 | I66: =SUM(I63:I65) -> 142 | J66: 131.5 | K66: 121 | L66: 121 | M66: 116.8 | N66: 114.7 | O66: 100 | P66: 100 | Q66: 100 | R66: 100 | S66: 100
C68: =Inputs!C37 -> Retained earnings
C69: Balance b/f | D69: AUD '000 | H69: =G71 -> 276.5 | I69: =H71 -> 346.5 | J69: 416.5 | K69: 486.5 | L69: 591.5 | M69: 731.5 | N69: 906.5 | O69: 1046.5 | P69: 1151.5 | Q69: 1221.5 | R69: 1291.5 | S69: 1347.5
C70: =C75 -> Profit / (Loss) | D70: =D75 -> AUD '000 | G70: =SUM(H70:S70) -> 1120 | H70: =H75 -> 70 | I70: =I75 -> 70 | J70: 70 | K70: 105 | L70: 140 | M70: 175 | N70: 140 | O70: 105 | P70: 70 | Q70: 70 | R70: 56 | S70: 49
C71: Balance c/f | D71: AUD '000 | G71: =Inputs!E72 -> 276.5 | H71: =SUM(H69:H70) -> 346.5 | I71: =SUM(I69:I70) -> 416.5 | J71: 486.5 | K71: 591.5 | L71: 731.5 | M71: 906.5 | N71: 1046.5 | O71: 1151.5 | P71: 1221.5 | Q71: 1291.5 | R71: 1347.5 | S71: 1396.5
C73: =C8 -> Gross Revenue | D73: =D8 -> AUD '000 | G73: =SUM(H73:S73) -> 1600 | H73: =H8 -> 100 | I73: =I8 -> 100 | J73: 100 | K73: 150 | L73: 200 | M73: 250 | N73: 200 | O73: 150 | P73: 100 | Q73: 100 | R73: 80 | S73: 70
C74: =C10 -> CoGS | D74: =D10 -> AUD '000 | G74: =SUM(H74:S74) -> -480 | H74: =-H10 -> -30 | I74: =-I10 -> -30 | J74: -30 | K74: -45 | L74: -60 | M74: -75 | N74: -60 | O74: -45 | P74: -30 | Q74: -30 | R74: -24 | S74: -21
C75: Profit / (Loss) | D75: AUD '000 | G75: =SUM(H75:S75) -> 1120 | H75: =SUM(H73:H74) -> 70 | I75: =SUM(I73:I74) -> 70 | J75: 70 | K75: 105 | L75: 140 | M75: 175 | N75: 140 | O75: 105 | P75: 70 | Q75: 70 | R75: 56 | S75: 49
C77: Cash
C78: Balance b/f | D78: AUD '000 | H78: =G82 -> 113 | I78: =H82 -> 190.5 | J78: 220 | K78: 264.5 | L78: 374 | M78: 544 | N78: 765.8 | O78: 942.7 | P78: 1078 | Q78: 1178 | R78: 1278 | S78: 1358
C79: Cash sales | D79: AUD '000 | G79: =SUM(H79:S79) -> 1600 | H79: =H73 -> 100 | I79: =I73 -> 100 | J79: 100 | K79: 150 | L79: 200 | M79: 250 | N79: 200 | O79: 150 | P79: 100 | Q79: 100 | R79: 80 | S79: 70
C80: =C24 -> Payment due on order | D80: =D24 -> AUD '000 | G80: -85.5 | H80: =-H24 -> -22.5 | I80: =-I24 -> -18 | J80: -13.5 | K80: -9 | L80: -9 | M80: -7.2 | N80: -6.3 | O80: 0 | P80: 0 | Q80: 0 | R80: 0 | S80: 0
C81: =C65 -> Payment of accounts payable | D81: =D65 -> AUD '000 | G81: -199.5 | H81: =H65 -> 0 | I81: =I65 -> -52.5 | J81: -42 | K81: -31.5 | L81: -21 | M81: -21 | N81: -16.8 | O81: -14.7 | P81: 0 | Q81: 0 | R81: 0 | S81: 0
C82: Balance c/f | D82: AUD '000 | G82: =Inputs!E58 -> 113 | H82: =SUM(H78:H81) -> 190.5 | I82: =SUM(I78:I81) -> 220 | J82: 264.5 | K82: 374 | L82: 544 | M82: 765.8 | N82: 942.7 | O82: 1078 | P82: 1178 | Q82: 1278 | R82: 1358 | S82: 1428
C84: Outputs / Cross-check
C85: Balance Sheet
C86: =Inputs!C22 -> Assets
C87: =Inputs!C23 -> Cash | D87: =D82 -> AUD '000 | H87: =H82 -> 190.5 | I87: =I82 -> 220 | J87: 264.5 | K87: 374 | L87: 544 | M87: 765.8 | N87: 942.7 | O87: 1078 | P87: 1178 | Q87: 1278 | R87: 1358 | S87: 1428
C88: =Inputs!C24 -> Prepayments | D88: =D26 -> AUD '000 | H88: =H26 -> 54 | I88: =I26 -> 58.5 | J88: 54 | K88: 40.5 | L88: 31.5 | M88: 25.2 | N88: 22.5 | O88: 13.5 | P88: 6.3 | Q88: 0 | R88: 0 | S88: 0
C89: =Inputs!C25 -> Work in progress (WiP) | D89: =D37 -> AUD '000 | H89: =H37 -> 94.5 | I89: =I37 -> 115.5 | J89: 126 | K89: 94.5 | L89: 73.5 | M89: 58.8 | N89: 52.5 | O89: 31.5 | P89: 14.7 | Q89: 0 | R89: 0 | S89: 0
C90: =Inputs!C26 -> Stock in transit (SiT) | D90: =D49 -> AUD '000 | H90: =H49 -> 60 | I90: =I49 -> 64.5 | J90: 73.5 | K90: 114 | L90: 135 | M90: 105 | N90: 75 | O90: 60 | P90: 54 | Q90: 45 | R90: 21 | S90: 0
C91: =Inputs!C27 -> Inventory | D91: =D60 -> AUD '000 | H91: =H60 -> 100 | I91: =I60 -> 100 | J91: 100 | K91: 89.5 | L91: 68.5 | M91: 68.5 | N91: 68.5 | O91: 68.5 | P91: 68.5 | Q91: 68.5 | R91: 68.5 | S91: 68.5
C92: =Inputs!C28 -> Total | D92: AUD '000 | H92: =SUM(H87:H91) -> 499 | I92: =SUM(I87:I91) -> 558.5 | J92: 618 | K92: 712.5 | L92: 852.5 | M92: 1023.3 | N92: 1161.2 | O92: 1251.5 | P92: 1321.5 | Q92: 1391.5 | R92: 1447.5 | S92: 1496.5
C94: =Inputs!C30 -> Liabilities
C95: =Inputs!C31 -> Accounts payable | D95: =D66 -> AUD '000 | H95: =-H66 -> -152.5 | I95: =-I66 -> -142 | J95: -131.5 | K95: -121 | L95: -121 | M95: -116.8 | N95: -114.7 | O95: -100 | P95: -100 | Q95: -100 | R95: -100 | S95: -100
C96: =Inputs!C32 -> Total | D96: AUD '000 | H96: =SUM(H95) -> -152.5 | I96: =SUM(I95) -> -142 | J96: -131.5 | K96: -121 | L96: -121 | M96: -116.8 | N96: -114.7 | O96: -100 | P96: -100 | Q96: -100 | R96: -100 | S96: -100
C98: =Inputs!C34 -> Net assets | D98: AUD '000 | H98: =H92+H96 -> 346.5 | I98: =I92+I96 -> 416.5 | J98: 486.5 | K98: 591.5 | L98: 731.5 | M98: 906.5 | N98: 1046.5 | O98: 1151.5 | P98: 1221.5 | Q98: 1291.5 | R98: 1347.5 | S98: 1396.5
C100: =Inputs!C36 -> Shareholders' equity
C101: =Inputs!C37 -> Retained earnings | D101: =D71 -> AUD '000 | H101: =H71 -> 346.5 | I101: =I71 -> 416.5 | J101: 486.5 | K101: 591.5 | L101: 731.5 | M101: 906.5 | N101: 1046.5 | O101: 1151.5 | P101: 1221.5 | Q101: 1291.5 | R101: 1347.5 | S101: 1396.5
C102: =Inputs!C38 -> Total | D102: AUD '000 | H102: =SUM(H101:H101) -> 346.5 | I102: =SUM(I101:I101) -> 416.5 | J102: 486.5 | K102: 591.5 | L102: 731.5 | M102: 906.5 | N102: 1046.5 | O102: 1151.5 | P102: 1221.5 | Q102: 1291.5 | R102: 1347.5 | S102: 1396.5
C104: =Inputs!C40 -> Balance sheet check | D104: Check | G104: =SUM(H104:S104) -> 0 | H104: =H98-H102 -> 0 | I104: =I98-I102 -> 0 | J104: 0 | K104: 0 | L104: 0 | M104: 0 | N104: 0 | O104: 0 | P104: 0 | Q104: 0 | R104: 0 | S104: 0
